fUSD/lending_fUSD_20240516
["ID","MTS","AMOUNT","RATE_DAILY","PERIOD"]
[327150976,1715856641435,-1731.28,0.00011077,2]
[327150977,1715856641445,-1731.28,0.00011077,2]
[327150978,1715856641456,-1113.89,0.00011077,2]
[327150979,1715856641467,-1731.28,0.00011077,2]
[327150980,1715856641476,-1113.89,0.00011077,2]
[327150981,1715856641487,-1113.89,0.00011077,2]
[327150982,1715856641496,-1113.89,0.00011077,2]
[327150983,1715856641506,-187.96,0.00011077,2]
[327150984,1715856641514,-500.0,0.00011077,2]
[327150985,1715856641525,-500.0,0.00011077,2]
[327150986,1715856641534,-500.0,0.00011077,2]
[327150987,1715856641545,-500.0,0.00011077,2]
[327150988,1715856641555,-500.0,0.00011077,2]
[327150989,1715856641565,-500.0,0.00011077,2]
[327150990,1715856641574,-500.0,0.00011077,2]
[327150991,1715856641584,-500.0,0.00011077,2]
[327150992,1715856641595,-3624.7,0.00011077,2]
[327150993,1715856641604,-3624.7,0.00011077,2]
[327150994,1715856641614,-3624.7,0.00011077,2]
[327150995,1715856641625,-3624.7,0.00011077,2]
[327150996,1715856641635,-3624.7,0.00011077,2]
[327150997,1715856641646,-500.0,0.00011077,2]
[327150998,1715856641655,-624.85,0.00011077,2]
[327150999,1715856641666,-500.0,0.00011077,2]
[327151000,1715856641675,-500.0,0.00011077,2]
[327151001,1715856641686,-500.0,0.00011077,2]
[327151002,1715856641695,-500.0,0.00011077,2]
[327151003,1715856641707,-500.0,0.00011077,2]
[327151004,1715856641717,-500.0,0.00011077,2]
[327151005,1715856641727,-500.0,0.00011077,2]
[327151006,1715856641738,-500.0,0.00011077,2]
[327151007,1715856641748,-500.0,0.00011077,2]
[327151008,1715856641761,-500.0,0.00011077,2]
[327151009,1715856641770,-500.0,0.00011077,2]
[327151010,1715856641779,-500.0,0.00011077,2]
[327151011,1715856641789,-549.07715338,0.00011077,2]
[327151012,1715856641798,-500.0,0.00011077,2]
[327151013,1715856641807,-500.0,0.00011077,2]
[327151014,1715856641817,-279.39564442,0.00011077,2]
[327151015,1715856641827,-500.0,0.00011077,2]
[327151016,1715856641836,-500.0,0.00011077,2]
[327151017,1715856641846,-500.0,0.00011077,2]
[327151018,1715856641856,-500.0,0.00011077,2]
[327151019,1715856641865,-500.0,0.00011077,2]
[327151020,1715856641875,-500.0,0.00011077,2]
[327151021,1715856641884,-500.0,0.00011077,2]
[327151022,1715856641893,-500.0,0.00011077,2]
[327151023,1715856641902,-500.0,0.00011077,2]
[327151024,1715856641912,-181.59,0.00011077,2]
[327151025,1715856641921,-500.0,0.00011077,2]
[327151026,1715856641933,-500.0,0.00011077,2]
[327151027,1715856641942,-500.0,0.00011077,2]
[327151028,1715856641953,-409.06,0.00011077,2]
[327151029,1715856641962,-500.0,0.00011077,2]
[327151030,1715856641971,-500.0,0.00011077,2]
[327151031,1715856641981,-500.0,0.00011077,2]
[327151032,1715856641991,-500.0,0.00011077,2]
[327151033,1715856642000,-500.0,0.00011077,2]
[327151034,1715856642009,-500.0,0.00011077,2]
[327151035,1715856642018,-495.89,0.00011077,2]
[327151036,1715856642027,-5104.38,0.00011077,2]
[327151037,1715856642036,-5104.38,0.00011077,2]
[327151038,1715856642046,-387.24,0.00011077,2]
[327151039,1715856642054,-5104.38,0.00011077,2]
[327151040,1715856642064,-5104.38,0.00011077,2]
[327151041,1715856642073,-500.0,0.00011077,2]
[327151042,1715856642082,-237.89,0.00011077,2]
[327151043,1715856642091,-500.0,0.00011077,2]
[327151044,1715856642101,-500.0,0.00011077,2]
[327151045,1715856642111,-500.0,0.00011077,2]
[327151046,1715856642120,-500.0,0.00011077,2]
[327151047,1715856642129,-500.0,0.00011077,2]
[327151048,1715856642138,-500.0,0.00011077,2]
[327151049,1715856642147,-500.0,0.00011077,2]
[327151050,1715856642157,-5176.75935904,0.00011078,2]
[327151051,1715856642370,-26490.67354307,0.00011078,2]
[327151073,1715856643667,-812.66387433,0.00010978,2]
[327151074,1715856643679,-500.0,0.00011077,2]
[327151075,1715856643690,-2009.29096677,0.00011078,2]
[327151087,1715856646428,-162.12041145,0.00010978,2]
[327151088,1715856646438,-1258.86655938,0.00011076,2]
[327151089,1715856646448,-428.28701049,0.00011076,2]
[327151090,1715856646457,-10890.74533423,0.00011078,2]
[327151091,1715856646637,-554.16639001,0.00011078,2]
[327151092,1715856646650,-629.38092231,0.00011078,2]
[327151093,1715856646662,-672.35000001,0.00011078,2]
[327151094,1715856646673,-2413.75,0.00011078,2]
[327151095,1715856646686,-7124.4,0.00011078,2]
[327151096,1715856677292,-1350.0,9.57e-05,2]
[327151097,1715856680696,1000.0,0.0002308,120]
[327151098,1715856682100,1000.0,0.0002308,120]
[327151099,1715856682521,1000.0,0.0002308,120]
[327151100,1715856682887,1000.0,0.0002308,120]
[327151101,1715856683261,1000.0,0.0002308,120]
[327151102,1715856683737,1000.0,0.0002308,120]
[327151103,1715856684111,1000.0,0.0002308,120]
[327151104,1715856687471,1000.0,0.0002308,120]
[327151105,1715856690454,1000.0,0.0002308,120]
[327151106,1715856693031,1000.0,0.0002308,120]
[327151107,1715856705508,5529.27638334,0.0002308,120]
[327151115,1715856973347,151.03,8.219e-05,2]
[327151118,1715857148300,13112.0,0.0002308,120]
[327151120,1715857452928,151.03,8.219e-05,2]
[327151167,1715857831638,-939.10970596,9.861e-05,2]
[327151168,1715857831652,-379.98229404,9.861e-05,2]
[327151169,1715857831834,-2646.83673506,9.861e-05,2]
[327151170,1715857831842,-6287.00639652,9.861e-05,2]
[327151171,1715857831850,-1659.11101113,9.861e-05,2]
[327151172,1715857831857,-535.53037562,9.863e-05,2]
[327151173,1715857831865,-1788.03912655,9.864e-05,2]
[327151174,1715857831872,-250.0,0.00010038,2]
[327151175,1715857831883,-250.0,0.00010038,2]
[327151176,1715857831890,-182.06,0.00010051,2]
[327151177,1715857831896,-19703.65,0.00010067,2]
[327151178,1715857831902,-1440.6,0.00010078,2]
[327151179,1715857831910,-1000.0,0.00010082,2]
[327151180,1715857831916,-1000.0,0.000108,2]
[327151181,1715857831923,-226.2429,0.00010877,2]
[327151182,1715857831930,-499.99,0.00010877,2]
[327151183,1715857831937,-1564.1179518,0.00010896,2]
[327151184,1715857831944,-186.71107273,0.00010967,2]
[327151185,1715857831952,-20.93233691,0.00010977,2]
[327151186,1715857831961,-479.06766309,0.00010977,2]
[327151187,1715857831968,-500.0,0.00010977,2]
[327151188,1715857831975,-266.46242758,0.00010977,2]
[327151189,1715857831985,-233.53757242,0.00010977,2]
[327151190,1715857831991,-557.04105355,0.00010977,2]
[327151191,1715857831999,-413.89128336,0.00010977,2]
[327151199,1715857837666,-86.10871664,0.00010977,2]
[327151201,1715857837676,-500.0,0.00010977,2]
[327151204,1715857837686,-258.91128336,0.00010977,2]
[327151218,1715857838098,-115.08871664,0.00010977,2]
[327151219,1715857838107,-500.0,0.00010977,2]
[327151220,1715857838117,-500.0,0.00010977,2]
[327151221,1715857838126,-500.0,0.00010977,2]
[327151222,1715857838135,-500.0,0.00010978,2]
[327151223,1715857838144,-500.0,0.00010978,2]
[327151224,1715857838154,-500.0,0.00010978,2]
[327151225,1715857838164,-500.0,0.00010978,2]
[327151226,1715857838173,-500.0,0.00010978,2]
[327151227,1715857838183,-21667.55648585,0.00010978,2]
[327151228,1715857838192,-500.0,0.00010978,2]
[327151229,1715857838201,-500.0,0.00010978,2]
[327151230,1715857838210,-500.0,0.00010978,2]
[327151231,1715857838219,-451.32403023,0.00010978,2]
[327151232,1715857838228,-500.0,0.00010978,2]
[327151233,1715857838238,-500.0,0.00010978,2]
[327151234,1715857838247,-500.0,0.00010978,2]
[327151235,1715857838257,-500.0,0.00010978,2]
[327151236,1715857838266,-500.0,0.00010978,2]
[327151237,1715857838275,-500.0,0.00010978,2]
[327151238,1715857838285,-500.0,0.00010978,2]
[327151239,1715857838294,-229.62855402,0.00010978,2]
[327151240,1715857838303,-500.0,0.00010978,2]
[327151241,1715857838313,-500.0,0.00010978,2]
[327151242,1715857838322,-500.0,0.00010978,2]
[327151243,1715857838332,-165.9,0.00010978,2]
[327151244,1715857838342,-500.0,0.00010978,2]
[327151245,1715857838351,-500.0,0.00010978,2]
[327151246,1715857838359,-500.0,0.00010978,2]
[327151247,1715857838369,-500.0,0.00010978,2]
[327151248,1715857838378,-171.47681867,0.00010978,2]
[327151249,1715857838387,-965.1565201,0.0001098,2]
[327151250,1715857838396,-192.95146766,0.0001098,2]
[327151251,1715857838406,-601.69164147,0.00010989,2]
[327151252,1715857838415,-500.0,0.00010991,2]
[327151253,1715857838425,-3002.63223356,0.00011,2]
[327151254,1715857838434,-200.0,0.00011,2]
[327151255,1715857838443,-150.0,0.00011,2]
[327151256,1715857838452,-150.0,0.00011,2]
[327151257,1715857838462,-403.93294972,0.00011,2]
[327151258,1715857838471,-1000.0,0.00011025,2]
[327151259,1715857838480,-1079.1402,0.00011025,2]
[327151260,1715857838489,-409.50716018,0.00011064,2]
[327151261,1715857838498,-392.35663692,0.00011064,2]
[327151262,1715857838508,-150.0,0.00011067,2]
[327151263,1715857838517,-49904.57,0.00011068,2]
[327151264,1715857838527,-1542.48306349,0.00011076,2]
[327151265,1715857838536,-155.0,0.00011076,2]
[327151266,1715857838545,-155.52154493,0.00011076,2]
[327151267,1715857838554,-162.34639192,0.00011076,2]
[327151268,1715857838563,-676.48100932,0.00011076,2]
[327151269,1715857838573,-522.95913528,0.00011076,2]
[327151270,1715857838582,-3282.80859403,0.00011076,2]
[327151271,1715857838591,-546.67301368,0.00011076,2]
[327151272,1715857838600,-167.81288797,0.00011076,2]
[327151273,1715857838609,-500.0,0.00011076,2]
[327151274,1715857838618,-286.30694261,0.00011076,2]
[327151275,1715857838627,-500.0,0.00011076,2]
[327151276,1715857838636,-500.0,0.00011076,2]
[327151277,1715857838646,-500.0,0.00011076,2]
[327151278,1715857838659,-387.24,0.00011076,2]
[327151279,1715857838669,-157.05162,0.00011076,2]
[327151280,1715857838678,-157.05162,0.00011076,2]
[327151281,1715857838688,-157.05162,0.00011076,2]
[327151282,1715857838698,-157.05162,0.00011076,2]
[327151283,1715857838707,-157.05162,0.00011076,2]
[327151284,1715857838716,-157.05162,0.00011076,2]
[327151285,1715857838725,-157.05162,0.00011076,2]
[327151286,1715857838738,-157.05162,0.00011076,2]
[327151287,1715857838748,-157.05162,0.00011076,2]
[327151288,1715857838757,-186.01539031,0.00011076,2]
[327151289,1715857838766,-500.0,0.00011076,2]
[327151290,1715857838775,-157.05162,0.00011076,2]
[327151291,1715857838784,-401.82384574,0.00011076,2]
[327151292,1715857838799,-487.41423658,0.00011076,2]
[327151293,1715857838808,-208.12578491,0.00011076,2]
[327151294,1715857838817,-500.0,0.00011076,2]
[327151295,1715857838826,-500.0,0.00011076,2]
[327151296,1715857838835,-500.0,0.00011076,2]
[327151297,1715857838844,-500.0,0.00011076,2]
[327151298,1715857838854,-500.0,0.00011076,2]
[327151299,1715857838863,-500.0,0.00011076,2]
[327151300,1715857838871,-500.0,0.00011076,2]
[327151301,1715857838880,-500.0,0.00011076,2]
[327151302,1715857838890,-500.0,0.00011076,2]
[327151303,1715857838900,-174.76,0.00011076,2]
[327151304,1715857838909,-500.0,0.00011076,2]
[327151305,1715857838918,-500.0,0.00011076,2]
[327151306,1715857838927,-500.0,0.00011076,2]
[327151307,1715857838939,-577.86961775,0.00011076,2]
[327151308,1715857838948,-500.0,0.00011076,2]
[327151309,1715857838956,-150.0,0.00011076,2]
[327151310,1715857838966,-204.84,0.00011076,2]
[327151311,1715857838975,-328.38,0.00011076,2]
[327151312,1715857838983,-500.0,0.00011076,2]
[327151313,1715857838992,-500.0,0.00011076,2]
[327151314,1715857839001,-191.85,0.00011076,2]
[327151315,1715857839011,-500.0,0.00011076,2]
[327151316,1715857839021,-500.0,0.00011076,2]
[327151317,1715857839032,-1080.83,0.00011076,2]
[327151318,1715857839042,-584.15909771,0.00011076,2]
[327151319,1715857839052,-204.57451448,0.00011076,2]
[327151320,1715857839061,-408.19817109,0.00011076,2]
[327151321,1715857839070,-284.0751755,0.00011076,2]
[327151322,1715857839079,-500.0,0.00011076,2]
[327151323,1715857839088,-540.20283223,0.00011076,2]
[327151324,1715857839097,-199.877,0.00011076,2]
[327151325,1715857839107,-2184.52280122,0.00011076,2]
[327151326,1715857839116,-377.72952639,0.00011076,2]
[327151327,1715857839126,-155.0,0.00011076,2]
[327151328,1715857839136,-500.0,0.00011076,2]
[327151329,1715857839145,-168.44065273,0.00011076,2]
[327151330,1715857839155,-12957.81070185,0.00011076,2]
[327151331,1715857839165,-237.10219524,0.00011076,2]
[327151332,1715857839175,-500.0,0.00011076,2]
[327151333,1715857839185,-265.94745897,0.00011076,2]
[327151334,1715857839195,-321.34456172,0.00011076,2]
[327151335,1715857839205,-155.0,0.00011076,2]
[327151336,1715857839215,-944.15,0.00011076,2]
[327151337,1715857839225,-4679.02,0.00011076,2]
[327151338,1715857839234,-210.66059679,0.00011076,2]
[327151339,1715857839244,-1063.06077755,0.00011076,2]
[327151340,1715857839474,-500.0,0.00011076,2]
[327151341,1715857839484,-726.23771159,0.00011076,2]
[327151342,1715857839493,-500.0,0.00011076,2]
[327151343,1715857839502,-316.44060217,0.00011076,2]
[327151344,1715857839514,-268.42254375,0.00011076,2]
[327151345,1715857839523,-5558.95156203,0.00011076,2]
[327151346,1715857839533,-8644.57,0.00011076,2]
[327151347,1715857839543,-262.86247652,0.00011076,2]
[327151348,1715857839552,-155.39198269,0.00011076,2]
[327151349,1715857839561,-2347.84,0.00011076,2]
[327151350,1715857839570,-500.0,0.00011076,2]
[327151351,1715857839580,-500.0,0.00011076,2]
[327151352,1715857839589,-500.0,0.00011076,2]
[327151353,1715857839599,-500.0,0.00011076,2]
[327151354,1715857839609,-500.0,0.00011076,2]
[327151355,1715857839618,-158.26245048,0.00011076,2]
[327151356,1715857839627,-500.0,0.00011076,2]
[327151357,1715857839637,-590.39,0.00011076,2]
[327151358,1715857839647,-6408.49246702,0.00011076,2]
[327151361,1715857839659,-625.95,0.00011076,2]
[327151364,1715857839668,-500.0,0.00011076,2]
[327151366,1715857839677,-500.0,0.00011076,2]
[327151368,1715857839686,-500.0,0.00011076,2]
[327151370,1715857839697,-500.0,0.00011076,2]
[327151372,1715857839707,-500.0,0.00011076,2]
[327151373,1715857839716,-500.0,0.00011076,2]
[327151375,1715857839726,-1180.44,0.00011076,2]
[327151377,1715857839737,-402.05292807,0.00011076,2]
[327151379,1715857839748,-500.0,0.00011076,2]
[327151381,1715857839757,-500.0,0.00011076,2]
[327151383,1715857839767,-500.0,0.00011076,2]
[327151384,1715857839776,-249.08,0.00011076,2]
[327151386,1715857839786,-500.0,0.00011076,2]
[327151387,1715857839796,-187.96,0.00011076,2]
[327151388,1715857839805,-500.0,0.00011076,2]
[327151389,1715857839815,-500.0,0.00011076,2]
[327151390,1715857839825,-500.0,0.00011076,2]
[327151391,1715857839835,-500.0,0.00011076,2]
[327151392,1715857839844,-500.0,0.00011076,2]
[327151393,1715857839854,-1659.15,0.00011076,2]
[327151394,1715857839863,-500.0,0.00011076,2]
[327151395,1715857839873,-500.0,0.00011076,2]
[327151396,1715857839884,-500.0,0.00011076,2]
[327151397,1715857839893,-437.09,0.00011076,2]
[327151398,1715857839903,-500.0,0.00011076,2]
[327151399,1715857839912,-500.0,0.00011076,2]
[327151400,1715857839922,-278.72,0.00011076,2]
[327151401,1715857839932,-500.0,0.00011076,2]
[327151402,1715857839941,-500.0,0.00011076,2]
[327151403,1715857839951,-3624.7,0.00011076,2]
[327151404,1715857839961,-500.0,0.00011076,2]
[327151405,1715857839971,-501.99900894,0.00011076,2]
[327151406,1715857839980,-500.0,0.00011076,2]
[327151407,1715857839989,-500.0,0.00011076,2]
[327151408,1715857839999,-500.0,0.00011076,2]
[327151409,1715857840009,-500.0,0.00011076,2]
[327151410,1715857840018,-528.33,0.00011076,2]
[327151411,1715857840028,-500.0,0.00011076,2]
[327151412,1715857840038,-350.54825,0.00011076,2]
[327151413,1715857840048,-164.60524356,0.00011076,2]
[327151414,1715857840057,-500.0,0.00011076,2]
[327151415,1715857840067,-500.0,0.00011076,2]
[327151416,1715857840077,-500.0,0.00011076,2]
[327151417,1715857840087,-500.0,0.00011076,2]
[327151418,1715857840096,-500.0,0.00011076,2]
[327151419,1715857840106,-150.01,0.00011077,2]
[327151420,1715857840116,-5866.64336106,0.00011077,2]
[327151421,1715857840125,-500.0,0.00011077,2]
[327151422,1715857840135,-500.0,0.00011077,2]
[327151423,1715857840145,-500.0,0.00011077,2]
[327151424,1715857840155,-500.0,0.00011077,2]
[327151425,1715857840167,-500.0,0.00011077,2]
[327151426,1715857840177,-500.0,0.00011077,2]
[327151427,1715857840188,-500.0,0.00011077,2]
[327151428,1715857840198,-500.0,0.00011077,2]
[327151429,1715857840208,-500.0,0.00011077,2]
[327151430,1715857840218,-500.0,0.00011077,2]
[327151431,1715857840227,-500.0,0.00011077,2]
[327151432,1715857840237,-301.11986266,0.00011077,2]
[327151433,1715857840247,-500.0,0.00011077,2]
[327151434,1715857840256,-354.0,0.00011077,2]
[327151435,1715857840266,-500.0,0.00011077,2]
[327151436,1715857840275,-500.0,0.00011077,2]
[327151437,1715857840285,-500.0,0.00011077,2]
[327151438,1715857840295,-346.69314244,0.00011077,2]
[327151439,1715857840304,-246.34304509,0.00011077,2]
[327151440,1715857840314,-500.0,0.00011077,2]
[327151441,1715857840324,-500.0,0.00011077,2]
[327151442,1715857840334,-500.0,0.00011077,2]
[327151443,1715857840344,-500.0,0.00011077,2]
[327151444,1715857840353,-500.0,0.00011077,2]
[327151445,1715857840363,-500.0,0.00011077,2]
[327151448,1715857840374,-500.0,0.00011077,2]
[327151449,1715857840385,-500.0,0.00011077,2]
[327151450,1715857840395,-500.0,0.00011077,2]
[327151451,1715857840404,-500.0,0.00011077,2]
[327151452,1715857840414,-500.0,0.00011077,2]
[327151453,1715857840424,-500.0,0.00011077,2]
[327151454,1715857840433,-500.0,0.00011077,2]
[327151455,1715857840443,-500.0,0.00011077,2]
[327151456,1715857840452,-425.82959515,0.00011077,2]
[327151457,1715857840461,-500.0,0.00011077,2]
[327151458,1715857840471,-500.0,0.00011077,2]
[327151459,1715857840480,-194.13477505,0.00011077,2]
[327151460,1715857840490,-292.57071612,0.00011077,2]
[327151461,1715857840500,-500.0,0.00011077,2]
[327151462,1715857840510,-500.0,0.00011077,2]
[327151463,1715857840520,-232.0577399,0.00011077,2]
[327151464,1715857840529,-500.0,0.00011077,2]
[327151465,1715857840538,-500.0,0.00011077,2]
[327151466,1715857840547,-500.0,0.00011077,2]
[327151467,1715857840557,-500.0,0.00011077,2]
[327151468,1715857840566,-500.0,0.00011077,2]
[327151469,1715857840576,-539.49490485,0.00011077,2]
[327151470,1715857840585,-500.0,0.00011077,2]
[327151471,1715857840595,-500.0,0.00011077,2]
[327151472,1715857840604,-500.0,0.00011077,2]
[327151473,1715857840613,-500.0,0.00011077,2]
[327151474,1715857840623,-500.0,0.00011077,2]
[327151475,1715857840633,-500.0,0.00011077,2]
[327151476,1715857840642,-500.0,0.00011077,2]
[327151477,1715857840653,-500.0,0.00011077,2]
[327151478,1715857840663,-500.0,0.00011077,2]
[327151479,1715857840673,-500.0,0.00011077,2]
[327151480,1715857840682,-167.74121459,0.00011077,2]
[327151481,1715857840692,-500.0,0.00011077,2]
[327151482,1715857840702,-500.0,0.00011077,2]
[327151483,1715857840711,-500.0,0.00011077,2]
[327151484,1715857840720,-500.0,0.00011077,2]
[327151485,1715857840729,-500.0,0.00011077,2]
[327151486,1715857840740,-500.0,0.00011077,2]
[327151487,1715857840750,-500.0,0.00011077,2]
[327151488,1715857840761,-500.0,0.00011077,2]
[327151489,1715857840771,-1080.83,0.00011077,2]
[327151490,1715857840781,-1080.83,0.00011077,2]
[327151491,1715857840790,-1080.83,0.00011077,2]
[327151492,1715857840799,-1080.83,0.00011077,2]
[327151493,1715857840809,-222.09,0.00011077,2]
[327151494,1715857840820,-500.0,0.00011077,2]
[327151495,1715857840830,-500.0,0.00011077,2]
[327151496,1715857840840,-500.0,0.00011077,2]
[327151497,1715857840849,-241.83964895,0.00011077,2]
[327151498,1715857840859,-500.0,0.00011077,2]
[327151499,1715857840870,-500.0,0.00011077,2]
[327151500,1715857840879,-207.16027963,0.00011077,2]
[327151501,1715857840889,-944.15,0.00011077,2]
[327151502,1715857840898,-944.15,0.00011077,2]
[327151503,1715857840907,-944.15,0.00011077,2]
[327151504,1715857840916,-944.15,0.00011077,2]
[327151505,1715857840925,-4679.02,0.00011077,2]
[327151506,1715857840935,-4679.02,0.00011077,2]
[327151507,1715857840946,-4679.02,0.00011077,2]
[327151508,1715857840955,-4679.02,0.00011077,2]
[327151509,1715857840966,-500.0,0.00011077,2]
[327151510,1715857840976,-500.0,0.00011077,2]
[327151511,1715857840985,-500.0,0.00011077,2]
[327151512,1715857840994,-500.0,0.00011077,2]
[327151513,1715857841005,-237.89,0.00011077,2]
[327151514,1715857841014,-8644.57,0.00011077,2]
[327151515,1715857841025,-8644.57,0.00011077,2]
[327151516,1715857841035,-8644.57,0.00011077,2]
[327151517,1715857841044,-8644.57,0.00011077,2]
[327151518,1715857841053,-2347.84,0.00011077,2]
[327151519,1715857841062,-2347.84,0.00011077,2]
[327151520,1715857841071,-2347.84,0.00011077,2]
[327151521,1715857841080,-2347.84,0.00011077,2]
[327151522,1715857841089,-427.85,0.00011077,2]
[327151523,1715857841100,-500.0,0.00011077,2]
[327151524,1715857841111,-500.0,0.00011077,2]
[327151525,1715857841120,-500.0,0.00011077,2]
[327151526,1715857841130,-500.0,0.00011077,2]
[327151527,1715857841140,-189.46,0.00011077,2]
[327151528,1715857841149,-500.0,0.00011077,2]
[327151529,1715857841159,-500.0,0.00011077,2]
[327151530,1715857841168,-500.0,0.00011077,2]
[327151531,1715857841177,-500.0,0.00011077,2]
[327151532,1715857841187,-500.0,0.00011077,2]
[327151533,1715857841196,-500.0,0.00011077,2]
[327151534,1715857841206,-500.0,0.00011077,2]
[327151535,1715857841214,-407.13,0.00011077,2]
[327151536,1715857841225,-1180.44,0.00011077,2]
[327151537,1715857841234,-1180.44,0.00011077,2]
[327151538,1715857841244,-1180.44,0.00011077,2]
[327151539,1715857841253,-1180.44,0.00011077,2]
[327151540,1715857841263,-500.0,0.00011077,2]
[327151541,1715857841272,-225.72,0.00011077,2]
[327151542,1715857841281,-326.6,0.00011077,2]
[327151543,1715857841290,-500.0,0.00011077,2]
[327151544,1715857841300,-500.0,0.00011077,2]
[327151545,1715857841311,-500.0,0.00011077,2]
[327151546,1715857841320,-500.0,0.00011077,2]
[327151547,1715857841330,-500.0,0.00011077,2]
[327151548,1715857841342,-500.0,0.00011077,2]
[327151549,1715857841352,-500.0,0.00011077,2]
[327151550,1715857841363,-500.0,0.00011077,2]
[327151551,1715857841373,-1659.15,0.00011077,2]
[327151552,1715857841385,-1659.15,0.00011077,2]
[327151553,1715857841394,-1659.15,0.00011077,2]
[327151554,1715857841403,-1659.15,0.00011077,2]
[327151555,1715857841413,-1659.15,0.00011077,2]
[327151556,1715857841424,-500.0,0.00011077,2]
[327151557,1715857841434,-500.0,0.00011077,2]
[327151558,1715857841443,-500.0,0.00011077,2]
[327151559,1715857841453,-500.0,0.00011077,2]
[327151560,1715857841463,-500.0,0.00011077,2]
[327151561,1715857841472,-624.85,0.00011077,2]
[327151562,1715857841482,-500.0,0.00011077,2]
[327151563,1715857841492,-500.0,0.00011077,2]
[327151564,1715857841502,-500.0,0.00011077,2]
[327151565,1715857841512,-500.0,0.00011077,2]
[327151566,1715857841526,-500.0,0.00011077,2]
[327151567,1715857841535,-500.0,0.00011077,2]
[327151568,1715857841545,-500.0,0.00011077,2]
[327151569,1715857841555,-500.0,0.00011077,2]
[327151570,1715857841564,-500.0,0.00011077,2]
[327151571,1715857841574,-500.0,0.00011077,2]
[327151572,1715857841584,-500.0,0.00011077,2]
[327151573,1715857841595,-549.07715338,0.00011077,2]
[327151574,1715857841606,-3624.7,0.00011077,2]
[327151575,1715857841616,-3624.7,0.00011077,2]
[327151576,1715857841625,-3624.7,0.00011077,2]
[327151577,1715857841635,-3624.7,0.00011077,2]
[327151578,1715857841644,-500.0,0.00011077,2]
[327151579,1715857841660,-500.0,0.00011077,2]
[327151580,1715857841670,-500.0,0.00011077,2]
[327151581,1715857841680,-500.0,0.00011077,2]
[327151582,1715857841691,-500.0,0.00011077,2]
[327151583,1715857841700,-500.0,0.00011077,2]
[327151584,1715857841710,-500.0,0.00011077,2]
[327151585,1715857841720,-181.59,0.00011077,2]
[327151586,1715857841733,-500.0,0.00011077,2]
[327151587,1715857841743,-500.0,0.00011077,2]
[327151588,1715857841754,-500.0,0.00011077,2]
[327151589,1715857841764,-500.0,0.00011077,2]
[327151590,1715857841774,-516.35,0.00011077,2]
[327151591,1715857841783,-500.0,0.00011077,2]
[327151592,1715857841794,-500.0,0.00011077,2]
[327151593,1715857841803,-500.0,0.00011077,2]
[327151594,1715857841814,-528.33,0.00011077,2]
[327151595,1715857841825,-528.33,0.00011077,2]
[327151596,1715857841835,-528.33,0.00011077,2]
[327151597,1715857841845,-528.33,0.00011077,2]
[327151598,1715857841855,-528.33,0.00011077,2]
[327151599,1715857841864,-500.0,0.00011077,2]
[327151600,1715857841873,-500.0,0.00011077,2]
[327151601,1715857841883,-500.0,0.00011077,2]
[327151602,1715857841892,-500.0,0.00011077,2]